bitfinex/quotes_ETHUSD_20251218
["timestamp","ask_amount","ask_price","bid_price","bid_amount"]
[1766067915842,0.405504,2964.3,2962.5,0.562]
[1766067916045,0.002,2963.6,2962.8,9.7326]
[1766067916727,0.002,2963.6,2962.3,10.19698023]
[1766067916922,0.002,2963.6,2962.1,3.37590037]
[1766067916923,0.405504,2963.4,2962.0,0.001]
[1766067917322,0.46438023,2963.0,2962.0,0.001]
[1766067917651,0.966504,2962.9,2962.0,0.001]
[1766067917948,1.43088423,2962.9,2962.0,0.001]
[1766067918518,4.8060024,2962.9,2962.0,0.001]
[1766067919258,0.318881,3356.0,2962.0,9.7336]
[1766067919259,3.37628106,2963.6,2962.0,9.7336]
[1766067919551,0.561,2963.5,2962.1,0.03375983]
[1766067919713,0.002,2963.6,2962.5,0.405504]
[1766067919918,0.002,2963.6,2962.9,9.7326]
[1766067920113,0.002,2963.6,2963.0,0.97326]
[1766067920313,0.002,2963.6,2963.0,10.70586]
[1766067921735,0.002,2963.6,2963.1,9.7326]
[1766067922237,0.002,2963.6,2963.0,0.97326]
[1766067922427,0.002,2963.6,2962.8,10.2936]
[1766067922760,0.002,2963.6,2962.9,9.7326]
[1766067925475,0.561,2964.2,2963.0,0.405504]
[1766067925769,0.561,2964.2,2963.3,7.2742]
[1766067926666,0.561,2964.2,2963.2,2.4584]
[1766067926969,0.561,2964.2,2963.2,2.70424]
[1766067927559,0.561,2964.2,2963.2,0.24584]
[1766067927764,0.561,2964.2,2963.0,9.7326]
[1766067928364,0.561,2964.2,2962.9,0.561]
[1766067928365,0.561,2964.2,2963.1,2.4584]
[1766067929446,0.561,2964.2,2963.4,7.2742]
[1766067929652,0.561,2964.2,2963.4,9.7326]
[1766067930137,0.5602,2964.2,2963.4,9.7326]
[1766067930465,0.5602,2964.2,2961.9,0.001]
[1766067930466,0.86988423,2963.6,2961.9,0.001]
[1766067930635,0.561,2963.5,2961.9,0.03476211]
[1766067930834,0.561,2963.5,2962.1,0.561]
[1766067930835,0.001,2963.4,2962.1,0.561]
[1766067931040,0.001,2963.4,2962.1,10.2936]
[1766067931258,0.001,2963.4,2962.2,0.561]
[1766067932670,0.001,2963.3,2962.2,0.561]
[1766067932970,0.001,2964.0,2962.4,7.2742]
[1766067933269,0.001,2964.0,2962.7,9.7326]
[1766067933434,0.001,2964.0,2962.8,0.561]
[1766067933634,0.001,2964.0,2962.8,9.7326]
[1766067933853,0.46538023,2964.0,2962.9,0.561]
[1766067934141,0.46538023,2964.0,2962.7,0.561]
[1766067934142,0.001,2963.8,2962.7,0.561]
[1766067934337,0.001,2963.8,2962.3,9.7336]
[1766067934539,0.001,2963.5,2962.3,0.001]
[1766067934774,6.58797442,2963.4,2962.0,0.001]
[1766067935069,0.405504,2962.8,2962.0,0.001]
[1766067935235,0.405504,2963.3,2962.0,0.001]
[1766067935637,0.405504,2963.3,2961.8,0.001]
[1766067935638,0.405504,2962.6,2961.8,0.001]
[1766067935871,0.405504,2962.4,2961.1,0.001]
[1766067936045,2.48458316,2962.4,2961.1,0.001]
[1766067936238,0.405504,2962.4,2961.1,0.001]
[1766067936634,0.46438023,2962.4,2961.1,0.001]
[1766067937050,3.93658202,2962.5,2961.1,0.001]
[1766067937051,0.561,2962.5,2961.1,0.001]
[1766067937235,0.405504,2962.3,2961.1,0.001]
[1766067937781,1.02538023,2962.5,2961.1,0.001]
[1766067938138,0.405504,2962.4,2961.1,0.001]
[1766067939174,0.46438023,2962.3,2961.1,0.001]
[1766067939470,0.405504,2962.2,2960.4,9.7326]
[1766067939671,0.46438023,2962.3,2960.4,9.7326]
[1766067939672,0.86988423,2962.3,2960.4,9.7326]
[1766067939965,0.86988423,2962.3,2960.3,0.561]
[1766067939966,0.405504,2962.2,2960.8,9.7336]
[1766067940384,0.405504,2962.0,2960.8,0.001]
[1766067940587,0.405504,2961.8,2960.8,0.001]
[1766067940952,2.48454558,2961.6,2960.8,0.001]
[1766067941143,0.86988423,2961.6,2960.8,0.001]
[1766067941543,0.46438023,2961.6,2959.1,1.74785772]
[1766067941750,0.46438023,2961.6,2958.3,9.07855982]
[1766067941751,0.86988423,2961.8,2959.7,2.4584]
[1766067942050,0.86988423,2961.8,2959.8,0.46438023]
[1766067942263,0.86988423,2961.8,2960.1,2.4584]
[1766067942570,0.405504,2961.7,2960.3,9.627]
[1766067942968,0.46438023,2961.6,2960.3,9.627]
[1766067943271,0.46438023,2961.6,2959.8,0.001]
[1766067943272,0.405504,2961.6,2959.9,9.627]
[1766067943446,0.405504,2961.6,2959.9,10.188]
[1766067943646,0.405504,2961.1,2959.8,0.001]
[1766067943874,0.405504,2960.9,2959.8,0.001]
[1766067944875,0.561,2961.0,2959.8,0.001]
[1766067945388,0.405504,2960.9,2959.8,0.001]
[1766067946585,7.21888215,2961.0,2959.8,0.001]
[1766067946885,0.405504,2960.9,2959.8,0.001]
[1766067947187,0.405504,2960.7,2959.8,0.001]
[1766067947385,0.561,2960.8,2959.8,0.001]
[1766067947689,0.405504,2960.7,2959.8,0.001]
[1766067947987,0.561,2961.1,2959.8,0.001]
[1766067948288,0.405504,2961.0,2959.8,0.001]
[1766067948487,0.561,2961.1,2959.8,0.001]
[1766067948856,0.561,2961.1,2959.9,0.56]
[1766067949501,0.561,2961.1,2959.9,1.0188]
[1766067949502,1.00122885,2961.1,2959.9,1.0188]
[1766067949703,1.00122885,2961.1,2959.9,11.2058]
[1766067949904,0.561,2961.1,2960.0,9.627]
[1766067950192,0.46438023,2961.3,2960.0,9.627]
[1766067950777,3.8412868,2961.3,2960.0,9.627]
[1766067950977,0.46438023,2961.3,2960.1,0.56]
[1766067951197,0.56,2961.6,2960.2,0.0337815]
[1766067951383,12.06827268,2962.1,2960.2,2.3695]
[1766067951696,1.02438023,2962.0,2960.1,3.93822292]
[1766067951858,0.56,2962.0,2960.2,0.86988423]
[1766067952191,8.69426077,2962.5,2960.4,7.663004]
[1766067952381,8.69426077,2962.5,2960.8,9.627]
[1766067952382,0.56,2962.4,2960.8,9.627]
[1766067952711,0.56,2962.4,2960.9,0.56]
[1766067952860,3.37758106,2962.5,2961.1,2.83388023]
[1766067952861,0.002,2962.5,2961.1,2.83388023]
[1766067953066,0.002,2962.5,2961.7,2.3695]
[1766067953373,0.002,2962.5,2961.8,0.56]
[1766067953574,0.002,2962.5,2961.8,1.5787]
[1766067954119,0.56,2963.2,2961.9,0.03376211]
[1766067954294,0.002,2963.6,2962.1,0.46438023]
[1766067954608,0.002,2963.6,2962.4,2.3695]
[1766067954767,0.004,2963.6,2962.4,2.9295]
[1766067954965,0.002,2963.5,2962.4,0.85295]
[1766067955260,0.002,2963.5,2962.4,0.56]
[1766067955662,0.0012,2963.6,2962.4,0.56]
[1766067955862,0.0012,2963.6,2962.5,0.03375527]
[1766067956062,0.0012,2963.6,2962.4,0.56]
[1766067956369,0.0012,2963.6,2962.7,9.627]
[1766067956895,0.0012,2963.6,2962.7,0.56]
[1766067957286,0.0012,2963.6,2963.2,7.2575]
[1766067957488,0.0012,2963.6,2963.0,2.3695]
[1766067957687,0.0012,2963.6,2963.0,2.9295]
[1766067958064,0.0012,2963.6,2963.0,2.3695]
[1766067958271,0.0012,2963.6,2963.1,9.627]
[1766067959169,0.0012,2963.6,2963.1,10.187]
[1766067960215,0.0012,2963.6,2961.8,1.74785772]
[1766067960364,0.0012,2963.6,2962.2,2.3695]
[1766067960365,0.002,2963.5,2962.2,2.3695]
[1766067960978,0.002,2963.5,2962.3,0.56]
[1766067961681,0.002,2963.5,2962.3,0.85295]
[1766067962309,0.002,2963.5,2962.3,11.10245]
[1766067962491,0.002,2963.5,2962.3,10.54245]
[1766067962675,0.0012,2963.6,2962.3,0.29295]
[1766067962869,0.0012,2963.6,2962.2,0.56]
[1766067962870,0.0012,2963.6,2962.4,0.03375641]
[1766067963169,0.0012,2963.6,2963.0,7.8545]
[1766067963394,0.0012,2963.6,2963.0,10.2495]
[1766067963904,0.0012,2963.6,2962.9,0.56]
[1766067964132,0.002,2963.7,2963.1,2.395]
[1766067964319,0.002,2963.7,2963.2,10.2495]
[1766067964724,0.002,2963.7,2963.1,0.2955]
[1766067964903,0.002,2963.7,2962.9,0.56]
[1766067965233,0.002,2963.7,2963.0,10.2495]
[1766067966434,0.002,2963.7,2962.6,2.395]
[1766067966640,0.002,2963.7,2962.8,0.56]
[1766067966835,0.002,2963.7,2962.7,8.4145]
[1766067967027,0.002,2963.7,2962.8,0.84145]
[1766067967222,0.002,2963.7,2962.8,1.40145]
[1766067967628,0.002,2963.7,2962.8,11.65095]
[1766067967843,0.002,2963.7,2962.9,10.2495]
[1766067968228,0.002,2963.7,2962.8,1.40145]
[1766067969418,0.002,2963.7,2962.8,11.65095]
[1766067969618,0.002,2963.7,2962.9,0.7928231]
[1766067970241,0.002,2963.7,2962.8,0.84145]
[1766067970446,0.002,2963.7,2962.1,10.2495]
[1766067970447,0.0032,2963.4,2962.1,10.2495]
[1766067970605,0.0032,2963.4,2962.0,0.559]
[1766067970800,0.0032,2963.4,2961.8,0.559]
[1766067970801,0.0032,2963.2,2961.8,0.559]
[1766067971024,0.0032,2963.0,2961.9,1.08085]
[1766067971336,0.559,2962.9,2961.9,1.08085]
[1766067971747,0.559,2962.9,2961.2,2.395]
[1766067971748,0.0032,2962.7,2961.2,2.395]
[1766067971947,0.0032,2962.7,2961.3,0.59276895]
[1766067972321,0.0032,2962.7,2961.4,10.2495]
[1766067972552,0.0032,2962.7,2960.6,4.54646254]
[1766067972757,0.5622,2962.9,2960.9,2.4722]
[1766067973061,0.46438023,2962.6,2961.2,2.4722]
[1766067973358,0.0032,2962.5,2960.9,8.2997]
[1766067975054,0.86988423,2962.4,2960.9,8.2997]
[1766067975371,0.0032,2962.1,2960.9,8.2997]
[1766067977032,0.0032,2962.1,2961.0,10.2129]
[1766067977238,0.0032,2962.1,2961.1,1.07719]
[1766067979066,0.0032,2962.5,2961.2,7.7407]
[1766067979295,0.0032,2962.5,2961.1,1.07719]
[1766067979296,0.559,2962.3,2961.3,10.2129]
[1766067979810,0.559,2963.0,2961.7,10.2129]
[1766067979957,0.5622,2963.0,2961.9,10.2129]
[1766067980163,0.559,2963.0,2962.1,7.7407]
[1766067980386,0.559,2963.0,2962.1,10.2129]
[1766067980706,0.559,2963.0,2961.8,1.02129]
[1766067980877,0.559,2963.0,2961.9,0.559]
[1766067981083,0.559,2963.0,2961.9,10.2129]
[1766067981598,0.559,2963.0,2961.8,0.559]
[1766067981889,0.559,2963.0,2962.2,7.7407]
[1766067982073,0.559,2963.0,2962.3,10.2129]
[1766067982257,0.559,2963.0,2962.3,11.23419]
[1766067982466,0.559,2963.5,2962.4,10.2129]
[1766067982758,0.559,2963.5,2962.6,7.7407]
[1766067982961,0.559,2963.5,2962.6,10.7719]
[1766067984085,0.559,2963.5,2962.7,10.2129]
[1766067984287,0.559,2963.5,2962.8,1.07719]
[1766067984602,0.002,2963.7,2962.9,10.2129]
[1766067986605,0.002,2963.7,2963.0,0.559]
[1766067986965,0.002,2963.7,2963.2,10.2129]
[1766067987668,0.002,2963.7,2963.0,0.559]
[1766067988088,0.002,2963.7,2962.8,0.559]
[1766067988571,0.002,2963.7,2963.0,10.2129]
[1766067988768,0.002,2963.7,2962.6,11.38067225]
[1766067989010,0.002,2963.7,2962.7,0.559]
[1766067989372,0.002,2963.7,2962.8,10.2129]
[1766067989709,0.002,2963.7,2962.9,1.07719]
[1766067990384,0.002,2963.7,2962.6,7.7407]
[1766067990599,0.002,2963.7,2962.7,2.4722]
[1766067990933,0.002,2963.7,2962.7,10.2129]
[1766067991230,0.002,2963.7,2962.6,7.7407]
[1766067991402,0.002,2963.7,2962.9,10.2129]
[1766067991921,0.002,2963.7,2962.9,1.58029]
[1766067992135,0.002,2963.7,2963.0,10.2129]
[1766067992623,0.002,2963.7,2962.9,0.559]
[1766067992915,0.002,2963.7,2963.1,10.2129]
[1766067994123,0.002,2963.7,2962.5,10.7719]
[1766067994726,0.002,2963.7,2962.5,0.001]
[1766067994727,0.87188423,2963.7,2962.5,0.001]
[1766067994885,0.86988423,2963.5,2962.5,0.001]
[1766067995090,0.86988423,2963.3,2961.5,10.2129]
[1766067995285,0.86988423,2963.3,2961.6,10.2129]
[1766067995526,0.405504,2963.3,2961.5,0.558]
[1766067995699,0.405504,2963.3,2961.4,0.001]
[1766067995700,0.86988423,2962.9,2961.4,0.001]
[1766067995901,0.405504,2962.8,2961.4,0.001]
[1766067996242,0.558,2962.7,2961.4,0.001]
[1766067996534,0.405504,2962.6,2961.4,0.001]
[1766067996886,0.86988423,2962.6,2961.4,0.001]
[1766067997086,0.405504,2962.4,2961.4,0.001]
[1766067997503,0.405504,2962.6,2961.4,0.001]
[1766067997691,0.86988423,2962.6,2961.4,0.001]
[1766067998104,0.48031839,2962.5,2961.4,0.001]
[1766067999047,0.94469862,2962.5,2961.4,0.001]
[1766067999248,0.46438023,2962.4,2961.4,0.001]
[1766067999799,0.48031839,2962.5,2961.4,0.001]
[1766068000131,0.405504,2962.4,2961.4,0.001]
[1766068000501,0.42570669,2962.4,2961.4,0.001]
[1766068000702,0.405504,2962.5,2961.4,10.2139]
[1766068001143,0.86988423,2962.6,2961.4,10.2139]
[1766068001709,0.405504,2962.6,2961.4,0.001]
[1766068001938,0.558,2962.7,2961.7,7.7407]
[1766068002140,0.558,2962.7,2961.8,2.4722]
[1766068002302,0.558,2962.7,2961.4,0.001]
[1766068002507,0.86988423,2962.6,2961.4,0.001]
[1766068003231,0.86988423,2962.4,2961.4,0.001]
[1766068003435,0.405504,2962.4,2961.4,0.001]
[1766068003641,0.405504,2962.5,2961.4,0.001]
[1766068004209,0.405504,2962.6,2961.4,0.001]
[1766068004439,0.86908423,2962.6,2961.4,0.001]
[1766068004618,0.48023878,2962.5,2961.4,0.001]
[1766068005139,0.46438023,2962.4,2961.4,0.001]
[1766068005440,0.46438023,2962.2,2961.4,0.001]
[1766068005650,0.558,2962.1,2961.4,0.001]
[1766068006327,0.405504,2961.9,2960.9,0.001]
[1766068007226,0.405504,2961.7,2960.9,0.001]
[1766068008453,0.558,2962.1,2960.9,0.001]
[1766068008814,1.02238023,2962.1,2960.9,0.001]
[1766068010142,0.558,2962.1,2960.9,0.001]
[1766068011219,0.558,2962.1,2961.0,10.3009]
[1766068011419,0.558,2962.1,2961.1,11.33109]
[1766068013283,0.405504,2962.0,2960.9,0.001]
[1766068013448,3.37666722,2961.5,2960.6,0.001]
[1766068013637,4.58238023,2961.4,2960.6,0.001]
[1766068013837,0.405504,2961.3,2960.6,0.001]
[1766068014370,0.405504,2962.3,2960.7,10.3009]
[1766068014667,0.405504,2961.8,2960.7,11.33109]
[1766068014967,0.558,2961.8,2960.7,11.33109]
[1766068015867,0.558,2961.8,2960.7,1.03019]
[1766068016068,0.558,2961.8,2960.6,0.001]
[1766068016235,0.46438023,2961.6,2960.6,0.001]
[1766068016434,0.405504,2961.5,2960.6,0.001]
[1766068016811,3.965504,2961.3,2960.6,0.001]
[1766068016946,0.558,2961.2,2960.6,0.001]
[1766068017147,0.405504,2961.0,2960.6,0.001]
[1766068017349,3.965504,2961.0,2960.2,0.001]
[1766068017667,0.86988423,2961.0,2960.2,0.001]
[1766068017876,0.405504,2961.0,2960.2,0.001]
[1766068018079,0.558,2961.2,2960.2,0.001]
[1766068018080,0.405504,2960.8,2960.2,0.001]
[1766068018236,0.558,2960.7,2960.2,0.001]
[1766068021760,0.558,2960.7,2959.9,0.001]
[1766068021761,0.405504,2960.6,2959.9,0.001]
[1766068021962,0.405504,2960.4,2959.9,0.001]
[1766068022175,0.405504,2960.4,2958.7,2.3282851]
[1766068022176,0.86988423,2960.4,2958.7,0.001]
[1766068022557,0.405504,2960.4,2958.8,10.0066]
[1766068022759,0.405504,2960.2,2958.7,10.5656]
[1766068022962,0.43411245,2960.5,2958.8,1.05656]
[1766068023164,0.46438023,2961.5,2959.3,7.5488]
[1766068023352,0.405504,2961.3,2959.6,10.0066]
[1766068023559,0.558,2961.4,2959.3,0.558]
[1766068023785,0.558,2961.4,2959.7,7.5488]
[1766068024082,2.09500859,2961.3,2959.3,7.5488]
[1766068024384,2.09500859,2961.3,2959.3,8.72638851]
[1766068024385,0.405504,2961.2,2959.3,8.72638851]
[1766068024688,0.86988423,2961.0,2960.1,0.001]
[1766068024977,0.405504,2960.8,2960.1,0.001]
[1766068025201,0.46438023,2961.0,2960.1,0.001]
[1766068025380,0.558,2961.1,2960.2,10.0066]
[1766068025754,0.558,2961.1,2960.1,0.001]
[1766068025945,0.17652738,2961.9,2960.7,2.4578]
[1766068026255,0.17652738,2961.9,2960.2,6.75627563]
[1766068026256,0.558,2962.8,2961.4,7.5488]
[1766068026582,0.558,2962.8,2961.7,7.5488]
[1766068026785,0.558,2962.8,2961.8,10.0066]
[1766068027279,0.002,2963.3,2961.9,0.03376211]
[1766068027481,0.002,2963.3,2961.5,0.405504]
[1766068027482,0.002,2963.3,2961.7,0.405504]
[1766068027655,0.002,2963.3,2962.0,10.0066]
[1766068027845,0.002,2963.3,2962.0,11.34487675]
[1766068028251,0.002,2963.3,2962.1,10.0066]
[1766068028806,0.002,2963.3,2961.5,0.46438023]
[1766068028807,0.002,2963.1,2961.1,10.0066]
[1766068028968,0.002,2963.1,2960.7,2.36527755]
[1766068028969,0.557,2963.0,2961.3,7.5488]
[1766068029305,0.002,2962.8,2961.3,0.46438023]
[1766068029461,0.5562,2963.0,2961.4,0.03376781]
[1766068029666,0.59528023,2963.3,2961.2,0.86988423]
[1766068029667,0.557,2962.9,2961.2,0.86988423]
[1766068029870,0.557,2962.9,2961.3,7.5488]
[1766068030188,0.557,2962.8,2961.6,10.0066]
[1766068030385,0.1289,2963.2,2961.6,10.0066]
[1766068030386,0.46438023,2963.1,2961.6,11.00726]
[1766068030595,0.557,2962.7,2961.6,10.0066]
[1766068030893,0.002,2962.2,2960.9,10.0066]
[1766068031187,0.405504,2962.6,2961.0,7.5488]
[1766068031188,0.557,2962.1,2961.0,7.5488]
[1766068031854,0.557,2962.1,2960.8,2.4578]
[1766068032354,0.557,2962.1,2960.3,2.92218023]
[1766068032355,0.1289,2961.8,2960.3,2.92218023]
[1766068032589,0.1289,2961.7,2960.4,1.08051135]
[1766068032888,0.1289,2961.7,2960.4,0.61613112]
[1766068033068,0.1289,2961.7,2960.3,2.4578]
[1766068033572,0.557,2961.6,2960.7,9.8749]
[1766068034062,0.002,2962.1,2960.8,0.03377465]
[1766068034263,0.002,2962.1,2960.8,0.86988423]
[1766068034459,0.002,2962.1,2961.1,7.81698023]
[1766068034655,0.002,2962.1,2961.3,9.8749]
[1766068034854,0.002,2962.1,2961.5,7.3526]
[1766068035058,0.002,2962.1,2961.5,9.8749]
[1766068035262,0.002,2962.1,2961.3,7.3526]
[1766068035458,0.002,2962.1,2961.2,0.78169802]
[1766068035459,0.002,2963.3,2961.8,2.5223]
[1766068035685,0.002,2963.3,2962.1,3.37595958]
[1766068035884,0.002,2963.3,2962.4,9.8749]
[1766068036620,0.002,2963.3,2962.5,7.3526]
[1766068036784,0.002,2963.3,2962.4,2.5223]
[1766068036785,0.002,2963.3,2962.6,9.8749]
[1766068037715,0.002,2963.3,2962.2,3.37585522]
[1766068038013,0.002,2963.3,2962.4,9.8749]
[1766068038317,0.1308,2963.3,2961.9,10.12713]
[1766068038613,0.1308,2963.3,2961.9,13.50328732]
[1766068038614,0.1328,2963.3,2961.9,13.50328732]
[1766068038782,0.1328,2963.3,2962.1,0.46438023]
[1766068038783,0.002,2963.3,2962.1,0.46438023]
[1766068038983,0.002,2963.3,2962.2,3.40956721]
[1766068039183,0.002,2963.3,2962.4,7.3526]
[1766068039387,0.002,2963.3,2962.5,9.8749]
[1766068039588,0.002,2963.3,2962.6,0.03375413]
[1766068039801,0.002,2963.3,2962.8,7.3526]
[1766068040003,0.002,2963.5,2962.8,7.3526]
[1766068040323,0.002,2963.5,2963.0,7.3526]
[1766068041907,0.002,2963.3,2963.0,7.3526]
[1766068042291,0.002,2963.3,2963.1,9.90864843]
[1766068042488,0.559,2963.9,2963.1,9.8749]
[1766068042825,0.559,2963.9,2963.5,9.8749]
[1766068042826,0.002,2963.9,2963.5,9.8749]
[1766068043138,0.002,2963.9,2962.9,13.24995624]
[1766068043337,0.559,2964.5,2963.3,7.3526]
[1766068043635,0.559,2964.5,2963.0,1.46602869]
[1766068043790,0.1308,2963.2,2961.2,2.36527755]
[1766068043989,0.01,2963.1,2961.7,13.25129324]
[1766068044223,0.01,2962.9,2961.4,3.37673027]
[1766068044400,0.01,2962.9,2961.5,10.26827303]
[1766068044607,0.1408,2962.7,2961.0,9.8749]
[1766068044793,0.1408,2962.7,2961.4,9.8749]
[1766068045121,0.556,2962.8,2961.4,9.8749]
[1766068045331,0.556,2962.8,2961.2,2.5223]
[1766068045495,0.01,2962.9,2961.5,9.8749]
[1766068045695,0.01,2962.9,2961.7,9.8749]
[1766068045696,0.566,2962.9,2961.7,9.8749]
[1766068046219,0.556,2962.9,2961.7,3.37643682]
[1766068046522,0.556,2962.9,2961.8,7.3526]
[1766068046852,0.556,2962.9,2961.9,9.8749]
[1766068047794,0.1408,2963.3,2961.9,9.8749]
[1766068047994,0.6968,2963.3,2962.0,0.98749]
[1766068049697,0.1408,2963.2,2962.0,0.98749]
[1766068051127,0.1408,2963.2,2961.9,0.001]
[1766068051128,0.1408,2962.9,2961.9,0.001]
[1766068051301,0.46438023,2963.2,2961.9,0.001]
[1766068051302,0.1408,2963.2,2961.9,0.001]
[1766068051502,0.1408,2963.2,2962.0,9.8749]
[1766068051703,0.556,2963.3,2961.9,0.001]
[1766068051704,0.1408,2963.1,2961.9,0.001]
[1766068052129,0.1408,2963.0,2961.9,0.001]
[1766068052429,0.1308,2963.0,2961.9,0.001]
[1766068052629,3.93063312,2963.3,2961.3,0.46438023]
[1766068052630,0.01,2962.6,2961.3,0.46438023]
[1766068052834,0.01,2962.6,2961.4,10.33928023]
[1766068053198,0.01,2962.6,2961.5,9.8749]
[1766068053934,0.0092,2962.6,2961.5,9.8749]
[1766068054431,0.556,2962.8,2961.6,0.03376553]
[1766068054634,0.556,2962.8,2961.8,9.8749]
[1766068054835,0.1298,2963.5,2961.9,0.03376211]
[1766068055014,0.002,2963.7,2962.4,7.3526]
[1766068055202,0.002,2963.7,2962.1,7.3526]
[1766068055203,0.556,2963.6,2962.1,7.3526]
[1766068055407,0.556,2963.6,2962.5,9.8749]
[1766068055637,0.558,2963.7,2962.5,9.8749]
[1766068056733,0.697,2963.7,2962.5,9.8749]
[1766068057435,0.139,2963.3,2962.2,0.91260075]
[1766068057917,0.139,2963.3,2962.0,12.11268777]
[1766068058235,0.139,2963.3,2962.1,3.37598036]
[1766068058427,0.002,2963.7,2962.4,7.3526]
[1766068058623,0.002,2963.7,2962.7,9.8749]
[1766068058817,0.002,2963.7,2962.7,0.99086553]
[1766068059137,0.002,2963.7,2962.6,0.46438023]
[1766068059436,0.002,2963.7,2962.5,1.77340754]
[1766068059633,0.002,2963.7,2962.8,7.3526]
[1766068059840,0.002,2963.7,2963.0,7.3526]
[1766068060005,0.002,2963.7,2962.6,1.77340754]
[1766068060202,0.002,2963.7,2962.8,7.3526]
[1766068060406,0.002,2963.7,2962.9,9.8749]
[1766068061337,0.002,2964.8,2963.1,2.927804]
[1766068061535,0.002,2964.8,2963.7,9.8749]
[1766068061744,0.002,2964.8,2963.5,0.46438023]
[1766068061745,0.002,2964.8,2963.8,10.86239]
[1766068061908,0.002,2964.8,2963.9,7.3526]
[1766068062349,0.002,2964.8,2963.9,9.8749]
[1766068062510,0.002,2964.8,2963.9,7.216]
[1766068062710,0.002,2964.8,2964.1,2.5425]
[1766068062939,0.002,2964.8,2964.2,10.01612382]
[1766068063325,0.151,2966.4,2964.5,7.216]
[1766068063523,0.151,2966.4,2964.2,2.03103136]
[1766068063524,0.151,2966.4,2965.0,9.7585]
[1766068063737,0.151,2966.4,2964.6,0.49811159]
[1766068063738,0.153,2966.0,2964.6,11.99628777]
[1766068063941,0.153,2966.0,2964.6,10.22288023]
[1766068064143,0.153,2966.0,2964.4,0.556]
[1766068064144,0.153,2966.0,2964.7,10.95812878]
[1766068064312,0.002,2966.0,2964.9,10.22288023]
[1766068064850,0.002,2966.0,2965.1,2.5425]
[1766068065054,0.002,2966.0,2965.2,9.7585]
[1766068065429,0.002,2966.0,2965.3,0.46438023]
[1766068065746,0.002,2966.0,2965.4,1.02228802]
[1766068066328,0.002,2966.7,2965.4,4.39451436]
[1766068066522,0.002,2966.7,2965.6,9.7585]
[1766068066727,0.002,2966.7,2965.2,7.216]
[1766068066909,0.161,2966.7,2965.5,0.46438023]
[1766068067314,0.0272,2966.6,2965.0,0.405504]
[1766068067546,0.0272,2966.6,2964.9,3.37274579]
[1766068067547,0.159,2966.2,2964.9,0.405504]
[1766068067732,0.714,2966.2,2965.0,0.46438023]
[1766068067935,0.1318,2965.9,2964.3,9.7585]
[1766068068255,0.1318,2965.2,2963.9,7.216]
[1766068068464,0.159,2964.8,2963.5,7.216]
[1766068068612,0.159,2964.8,2963.6,0.46438023]
[1766068068820,0.159,2964.8,2963.5,13.1328131]
[1766068069155,0.159,2964.8,2963.6,1.77766154]
[1766068069394,0.159,2964.8,2963.6,1.31328131]
[1766068070332,0.1318,2964.4,2962.7,7.216]
[1766068070536,0.1318,2964.1,2962.7,7.216]
[1766068070736,0.1318,2964.1,2962.2,3.37580879]
[1766068070737,0.1318,2963.6,2962.2,9.7585]
[1766068071047,0.1318,2963.4,2962.2,9.7585]
[1766068071247,0.1318,2963.4,2962.3,0.97585]
[1766068071455,0.159,2963.3,2962.3,0.97585]
[1766068071748,0.159,2962.9,2961.5,0.001]
[1766068072046,0.159,2962.9,2961.5,9.7595]
[1766068072047,0.555,2962.8,2961.5,9.7595]
[1766068072217,0.555,2962.8,2961.6,0.46438023]
[1766068072411,0.555,2962.8,2961.7,0.46438023]
[1766068072615,0.555,2962.8,2961.8,9.7585]
[1766068072814,0.159,2963.3,2961.9,0.97585]
[1766068073033,0.555,2963.2,2961.9,0.97585]
[1766068074164,0.555,2963.1,2962.1,9.7585]
[1766068074319,0.555,2963.3,2962.3,9.7585]
[1766068074520,0.555,2963.3,2962.1,9.7585]
[1766068074719,0.555,2963.3,2962.2,0.97585]
[1766068074720,0.714,2963.3,2962.2,0.97585]
[1766068076530,0.555,2963.3,2961.9,0.97585]
[1766068076767,0.555,2963.3,2960.8,9.7585]
[1766068076768,0.405504,2962.9,2960.8,9.7585]
[1766068076961,0.86988423,2962.5,2960.7,0.001]
[1766068077137,0.405504,2962.3,2960.7,0.001]
[1766068078540,0.404704,2962.1,2960.7,0.001]
[1766068079831,0.555,2962.0,2960.7,9.7595]
[1766068080265,8.41154036,2962.7,2960.7,9.7595]
[1766068080266,1.01445085,2962.9,2961.5,0.001]
[1766068080443,0.002,2962.8,2961.5,0.001]
[1766068080657,0.555,2962.7,2961.5,0.001]
[1766068080856,0.002,2962.8,2961.5,0.001]
[1766068080857,0.002,2962.8,2961.6,9.9822]
[1766068081068,0.555,2962.7,2961.7,0.99832]
[1766068081562,0.555,2962.7,2961.5,0.001]
[1766068082904,0.46438023,2962.6,2961.5,0.001]
[1766068083054,1.01938023,2962.7,2961.5,0.001]